[Event "IND-ch Senior Open 2019"]
[Site "Mazitar"]
[Date "2019.12.16"]
[Round "8.2"]
[White "Aravindh, Chithambaram VR."]
[Black "Lalith Babu M R"]
[Result "1/2-1/2"]
[ECO "E21"]
[WhiteElo "2605"]
[BlackElo "2556"]
[Annotator "RC"]
[PlyCount "64"]
[EventDate "2018.12.08"]
[EventType "swiss"]
[EventCountry "IND"]
[SourceTitle "playchess.com"]
[Source "ChessBase"]
[SourceQuality "1"]
[TimeControl "40/5400+30:1800+30"]

1. d4 {[%emt 0:00:01]} Nf6 {[%emt 0:00:00]} 2. c4 {[%emt 0:00:14]} e6 {[%emt 0:00:00]} 3. Nc3 {[%emt 0:00:07]} Bb4 {[%emt 0:00:00]} 4. Nf3 {[%emt 0:00:05]} b6 {[%emt 0:00:51]} 5. Bg5 {[%emt 0:00:17]} Bb7 {[%emt 0:00:16]} 6. Nd2 {[%emt 0:00:20]} h6 {[%emt 0:06:39]} 7. Bh4 {[%emt 0:00:19]} Nc6 {[%emt 0:05:58]} 8. e3 {[%emt 0:03:04]} Ne7 {[%emt 0:00:24]} 9. f3 {[%emt 0:32:37]} Nf5 {[%emt 0:06:10]} 10. Bf2 {[%emt 0:00:38]} c5 {[%emt 0:00:06]} 11. Bd3 {[%emt 0:04:20]} O-O {[%emt 0:05:47]} 12. a3 {[%emt 0:04:31]} cxd4 {[%emt 0:00:31]} 13. exd4 {[%emt 0:00:18]} Bxc3 {[%emt 0:07:49]} 14. bxc3 {[%emt 0:00:19]} d5 {[%emt 0:00:48]} 15. c5 {[%emt 0:08:58]} Nd7 {[%emt 0:02:49]} 16. O-O {[%emt 0:00:57]} Qc8 {[%emt 0:00:31]} 17. c4 {[%emt 0:08:51]} bxc5 {[%emt 0:11:23]} 18. Bxf5 {[%emt 0:00:49]} exf5 {[%emt 0:00:25]} 19. Rc1 {[%emt 0:00:07]} Nb6 {[%emt 0:02:28]} 20. Re1 {[%emt 0:05:57]} Rd8 {[%emt 0:02:00]} 21. dxc5 {[%emt 0:01:37]} Nxc4 {[%emt 0:00:11]} 22. Nxc4 {[%emt 0:05:27]} dxc4 {[%emt 0:00:10]} 23. Qa4 {[%emt 0:00:05]} Bd5 {[%emt 0:04:39]} 24. Re7 {[%emt 0:00:36]} a5 {[%emt 0:01:06]} 25. c6 {[%emt 0:04:22]} Qxc6 {[%emt 0:00:33]} 26. Qxc6 {[%emt 0:00:04]} Bxc6 {[%emt 0:00:03]} 27. Rxc4 {[%emt 0:00:06]} Rd1+ {[%emt 0:01:28]} 28. Re1 {[%emt 0:00:08]} Rxe1+ {[%emt 0:00:05]} 29. Bxe1 {[%emt 0:00:05]} Bd7 {[%emt 0:00:13]} 30. Rc7 {[%emt 0:03:33]} Be6 {[%emt 0:00:58]} 31. Rc5 {[%emt 0:00:06]} a4 {[%emt 0:00:09]} 32. Ra5 {[%emt 0:00:26]} Rxa5 {[%emt 0:01:02]} 1/2-1/2

[Event "IND-ch Senior Open 2019"]
[Site "Mazitar"]
[Date "2019.12.18"]
[Round "10.2"]
[White "Vaibhav, Suri"]
[Black "Shyaamnikhil P"]
[Result "1/2-1/2"]
[ECO "B41"]
[WhiteElo "2597"]
[BlackElo "2455"]
[Annotator "ChessBase"]
[PlyCount "201"]
[EventDate "2018.12.08"]
[EventType "swiss"]
[EventCountry "IND"]
[SourceTitle "playchess.com"]
[Source "ChessBase"]
[SourceQuality "1"]
[TimeControl "40/5400+30:1800+30"]

1. e4 {[%emt 0:00:00]} c5 {[%emt 0:00:34]} 2. Nf3 {[%emt 0:00:00]} e6 {[%emt 0:00:07]} 3. d4 {[%emt 0:00:02]} cxd4 {[%emt 0:00:04]} 4. Nxd4 {[%emt 0:00:05]} a6 {[%emt 0:00:06]} 5. c4 {[%emt 0:00:25]} Nf6 {[%emt 0:02:07]} 6. Nc3 {[%emt 0:00:05]} Qc7 {[%emt 0:01:24]} 7. a3 {[%emt 0:00:11]} b6 {[%emt 0:01:43]} 8. Be2 {[%emt 0:00:17]} Bb7 {[%emt 0:00:30]} 9. f3 {[%emt 0:00:05]} Be7 {[%emt 0:12:29]} 10. Be3 {[%emt 0:01:21]} d6 {[%emt 0:04:15]} 11. O-O {[%emt 0:00:07]} Nbd7 {[%emt 0:00:13]} 12. Qe1 {[%emt 0:00:06]} Rc8 {[%emt 0:01:40]} 13. Rc1 {[%emt 0:09:20]} Qb8 {[%emt 0:00:56]} 14. b4 {[%emt 0:01:35]} Bd8 {[%emt 0:03:10]} 15. Qf2 {[%emt 0:05:55]} Bc7 {[%emt 0:03:03]} 16. g4 {[%emt 0:06:44]} h6 {[%emt 0:09:45]} 17. h4 {[%emt 0:02:05]} g5 {[%emt 0:02:08]} 18. Kg2 {[%emt 0:13:10]} Rg8 {[%emt 0:04:23]} 19. hxg5 {[%emt 0:13:28]} hxg5 {[%emt 0:00:43]} 20. Rh1 {[%emt 0:00:46]} Bd8 {[%emt 0:02:25]} 21. Kg1 {[%emt 0:04:36]} Ne5 {[%emt 0:02:47]} 22. Na4 {[%emt 0:04:36]} Nfd7 {[%emt 0:04:20]} 23. Rh6 {[%emt 0:02:33]} Ng6 {[%emt 0:01:27]} 24. b5 {[%emt 0:11:48]} Nc5 {[%emt 0:09:40]} 25. Nc3 {[%emt 0:03:35]} a5 {[%emt 0:03:40]} 26. Nc6 {[%emt 0:02:59]} Bxc6 {[%emt 0:02:45]} 27. bxc6 {[%emt 0:00:01]} Rxc6 {[%emt 0:03:34]} 28. Rd1 {[%emt 0:01:30]} Bf6 {[%emt 0:02:34]} 29. Nb5 {[%emt 0:00:03]} Ke7 {[%emt 0:02:44]} 30. Qh2 {[%emt 0:07:46]} Rh8 {[%emt 0:07:04]} 31. Nd4 {[%emt 0:01:58]} Bxd4 {[%emt 0:04:05]} 32. Rxd4 {[%emt 0:00:05]} e5 {[%emt 0:01:17]} 33. Bxg5+ {[%emt 0:02:53]} Kd7 {[%emt 0:02:46]} 34. Rd1 {[%emt 0:01:57]} Rxh6 {[%emt 0:00:32]} 35. Bxh6 {[%emt 0:00:58]} Qh8 {[%emt 0:00:49]} 36. Be3 {[%emt 0:02:17]} Qxh2+ {[%emt 0:00:46]} 37. Kxh2 {[%emt 0:00:01]} Nf4 {[%emt 0:02:01]} 38. Bf1 {[%emt 0:00:46]} Ke7 {[%emt 0:02:39]} 39. Kg3 {[%emt 0:00:27]} Ng6 {[%emt 0:00:44]} 40. g5 {[%emt 0:00:00]} Ne6 {[%emt 0:00:00]} 41. Kg4 {[%emt 0:07:42]} Nc5 {[%emt 0:03:00]} 42. Rb1 {[%emt 0:04:18]} Nd7 {[%emt 0:01:08]} 43. Rb2 {[%emt 0:02:44]} Ngf8 {[%emt 0:00:28]} 44. Rb1 {[%emt 0:04:52]} Ne6 {[%emt 0:00:32]} 45. Be2 {[%emt 0:00:53]} Nef8 {[%emt 0:04:40]} 46. Kf5 {[%emt 0:02:48]} Ng6 {[%emt 0:02:30]} 47. Rh1 {[%emt 0:02:11]} Kf8 {[%emt 0:01:59]} 48. Rh2 {[%emt 0:01:04]} Ne7+ {[%emt 0:00:19]} 49. Kg4 {[%emt 0:00:01]} Ng6 {[%emt 0:00:08]} 50. Bf1 {[%emt 0:00:14]} Nc5 {[%emt 0:02:46]} 51. Kg3 {[%emt 0:00:49]} Ke7 {[%emt 0:01:54]} 52. Rb2 {[%emt 0:01:08]} Nd7 {[%emt 0:00:28]} 53. Rc2 {[%emt 0:00:44]} Nc5 {[%emt 0:00:44]} 54. Rc1 {[%emt 0:03:18]} Nf8 {[%emt 0:00:39]} 55. Bh3 {[%emt 0:01:09]} Na4 {[%emt 0:02:03]} 56. Rb1 {[%emt 0:01:54]} Ne6 {[%emt 0:01:23]} 57. Bf1 {[%emt 0:00:39]} Rc8 {[%emt 0:02:18]} 58. Kg4 {[%emt 0:01:15]} Rg8 {[%emt 0:01:26]} 59. Kf5 {[%emt 0:02:23]} Ng7+ {[%emt 0:00:14]} 60. Kg4 {[%emt 0:00:01]} Ne6 {[%emt 0:00:07]} 61. Kf5 {[%emt 0:02:30]} Rh8 {[%emt 0:01:12]} 62. c5 {[%emt 0:00:40]} Naxc5 {[%emt 0:02:12]} 63. Rxb6 {[%emt 0:00:52]} Rh4 {[%emt 0:02:03]} 64. g6 {[%emt 0:00:01]} Nd4+ {[%emt 0:07:16]} 65. Bxd4 {[%emt 0:00:45]} Rf4+ {[%emt 0:00:05]} 66. Kg5 {[%emt 0:00:00]} Ne6+ {[%emt 0:00:08]} 67. Kh5 {[%emt 0:00:01]} fxg6+ {[%emt 0:01:01]} 68. Kxg6 {[%emt 0:00:01]} Rf6+ {[%emt 0:00:10]} 69. Kh5 {[%emt 0:01:04]} Nxd4 {[%emt 0:00:11]} 70. Rb7+ {[%emt 0:00:07]} Kd8 {[%emt 0:00:08]} 71. Bh3 {[%emt 0:00:50]} Rxf3 {[%emt 0:01:27]} 72. Bg4 {[%emt 0:00:07]} Rxa3 {[%emt 0:01:47]} 73. Rd7+ {[%emt 0:00:02]} Ke8 {[%emt 0:00:09]} 74. Rxd6 {[%emt 0:00:03]} Re3 {[%emt 0:00:10]} 75. Bf5 {[%emt 0:02:05]} Nxf5 {[%emt 0:00:16]} 76. exf5 {[%emt 0:00:01]} Kf7 {[%emt 0:00:12]} 77. Ra6 {[%emt 0:00:53]} Ra3 {[%emt 0:00:56]} 78. Re6 {[%emt 0:00:40]} Re3 {[%emt 0:01:32]} 79. Ra6 {[%emt 0:00:01]} Ra3 {[%emt 0:00:06]} 80. Re6 {[%emt 0:00:05]} Ra1 {[%emt 0:00:55]} 81. Kg5 {[%emt 0:02:00]} Rg1+ {[%emt 0:00:51]} 82. Kh4 {[%emt 0:00:17]} Re1 {[%emt 0:00:40]} 83. Ra6 {[%emt 0:00:12]} Ra1 {[%emt 0:00:25]} 84. Kg5 {[%emt 0:00:32]} Rg1+ {[%emt 0:00:09]} 85. Kh4 {[%emt 0:00:04]} a4 {[%emt 0:00:24]} 86. Rxa4 {[%emt 0:00:58]} Kf6 {[%emt 0:00:06]} 87. Rg4 {[%emt 0:00:20]} Rf1 {[%emt 0:01:00]} 88. Kg3 {[%emt 0:00:37]} Kxf5 {[%emt 0:00:13]} 89. Ra4 {[%emt 0:00:19]} e4 {[%emt 0:00:42]} 90. Ra5+ {[%emt 0:00:34]} Ke6 {[%emt 0:00:06]} 91. Ra6+ {[%emt 0:00:16]} Kd5 {[%emt 0:00:19]} 92. Ra5+ {[%emt 0:00:05]} Kc4 {[%emt 0:00:47]} 93. Ra4+ {[%emt 0:00:04]} Kd3 {[%emt 0:00:06]} 94. Ra3+ {[%emt 0:00:02]} Kd2 {[%emt 0:00:12]} 95. Ra2+ {[%emt 0:00:04]} Kc3 {[%emt 0:00:08]} 96. Ra3+ {[%emt 0:00:03]} Kd2 {[%emt 0:00:26]} 97. Ra2+ {[%emt 0:00:04]} Kc3 {[%emt 0:00:04]} 98. Ra3+ {[%emt 0:00:02]} Kb2 {[%emt 0:00:13]} 99. Re3 {[%emt 0:00:06]} Rf3+ {[%emt 0:00:03]} 100. Rxf3 {[%emt 0:00:04]} exf3 {[%emt 0:00:03]} 101. Kxf3 {[%emt 0:00:04]} 1/2-1/2

[Event "IND-ch Senior Open 2019"]
[Site "Mazitar"]
[Date "2019.12.18"]
[Round "10.3"]
[White "Akash G"]
[Black "Anurag, Mhamal"]
[Result "1-0"]
[ECO "C67"]
[WhiteElo "2431"]
[BlackElo "2490"]
[Annotator "ChessBase"]
[PlyCount "83"]
[EventDate "2018.12.08"]
[EventType "swiss"]
[EventCountry "IND"]
[SourceTitle "playchess.com"]
[Source "ChessBase"]
[SourceQuality "1"]
[TimeControl "40/5400+30:1800+30"]

1. e4 {[%emt 0:00:00]} e5 {[%emt 0:00:14]} 2. Nf3 {[%emt 0:00:44]} Nc6 {[%emt 0:00:19]} 3. Bb5 {[%emt 0:00:07]} Nf6 {[%emt 0:00:47]} 4. O-O {[%emt 0:01:56]} Nxe4 {[%emt 0:00:27]} 5. Re1 {[%emt 0:01:15]} Nd6 {[%emt 0:00:03]} 6. Nxe5 {[%emt 0:02:28]} Be7 {[%emt 0:00:10]} 7. Bf1 {[%emt 0:03:04]} Nxe5 {[%emt 0:00:05]} 8. Rxe5 {[%emt 0:00:09]} O-O {[%emt 0:00:04]} 9. d4 {[%emt 0:02:28]} Bf6 {[%emt 0:00:04]} 10. Bd3 {[%emt 0:06:04]} Bxe5 {[%emt 0:34:04]} 11. dxe5 {[%emt 0:00:18]} Ne8 {[%emt 0:00:10]} 12. Qh5 {[%emt 0:09:07]} g6 {[%emt 0:00:10]} 13. Qh6 {[%emt 0:00:32]} Qe7 {[%emt 0:07:06]} 14. Nc3 d5 {[%emt 0:36:38]} 15. exd6 {[%emt 0:22:43]} Nxd6 {[%emt 0:08:40]} 16. Nd5 {[%emt 0:21:59]} Qe1+ {[%emt 0:02:08]} 17. Bf1 {[%emt 0:00:06]} Qe5 {[%emt 0:00:14]} 18. Nxc7 {[%emt 0:02:31]} Nf5 {[%emt 0:00:09]} 19. Qf4 {[%emt 0:00:56]} Qxf4 {[%emt 0:00:02]} 20. Bxf4 {[%emt 0:00:07]} Rb8 21. g4 {[%emt 0:10:14]} g5 {[%emt 0:04:13]} 22. Bxg5 {[%emt 0:01:17]} Nd4 {[%emt 0:00:51]} 23. Bf6 {[%emt 0:02:58]} Nf3+ {[%emt 0:02:50]} 24. Kg2 {[%emt 0:01:40]} Nd2 {[%emt 0:00:51]} 25. Bd3 {[%emt 0:05:18]} Bd7 {[%emt 0:01:31]} 26. Re1 {[%emt 0:02:01]} Bc6+ {[%emt 0:00:16]} 27. Kg3 {[%emt 0:00:19]} Rfc8 {[%emt 0:00:51]} 28. Re7 {[%emt 0:02:21]} b5 {[%emt 0:00:19]} 29. Na6 {[%emt 0:01:02]} Rb6 {[%emt 0:00:42]} 30. Nb4 {[%emt 0:00:29]} Be4 {[%emt 0:00:29]} 31. Bc3 {[%emt 0:00:32]} Bxd3 {[%emt 0:00:31]} 32. cxd3 {[%emt 0:00:21]} Nb1 {[%emt 0:00:26]} 33. Bd4 {[%emt 0:00:43]} Rg6 {[%emt 0:00:34]} 34. Rxa7 {[%emt 0:00:32]} h5 {[%emt 0:00:27]} 35. h3 {[%emt 0:00:04]} hxg4 {[%emt 0:00:05]} 36. h4 {[%emt 0:00:46]} Rd6 {[%emt 0:00:58]} 37. Be3 {[%emt 0:00:27]} f5 {[%emt 0:00:12]} 38. Rb7 {[%emt 0:00:36]} Re6 {[%emt 0:00:48]} 39. Rxb5 {[%emt 0:00:32]} Rf8 {[%emt 0:00:12]} 40. Kf4 {[%emt 0:00:00]} Rh6 {[%emt 0:00:00]} 41. Rxf5 {[%emt 0:07:38]} Rb8 {[%emt 0:01:35]} 42. a3 {[%emt 0:01:44]} 1-0

[Event "IND-ch Senior Open 2019"]
[Site "Mazitar"]
[Date "2019.12.18"]
[Round "10.4"]
[White "Ravi, Teja S."]
[Black "Konguvel, Ponnuswamy"]
[Result "1/2-1/2"]
[ECO "E68"]
[WhiteElo "2455"]
[BlackElo "2367"]
[Annotator "ChessBase"]
[PlyCount "64"]
[EventDate "2018.12.08"]
[EventType "swiss"]
[EventCountry "IND"]
[SourceTitle "playchess.com"]
[Source "ChessBase"]
[SourceQuality "1"]
[TimeControl "40/5400+30:1800+30"]

1. d4 {[%emt 0:00:00]} Nf6 {[%emt 0:00:00]} 2. c4 {[%emt 0:00:17]} g6 {[%emt 0:00:00]} 3. Nc3 {[%emt 0:00:13]} Bg7 {[%emt 0:00:34]} 4. g3 {[%emt 0:00:19]} O-O {[%emt 0:02:28]} 5. Bg2 {[%emt 0:00:04]} d6 {[%emt 0:03:28]} 6. Nf3 {[%emt 0:00:13]} Nbd7 {[%emt 0:00:04]} 7. O-O {[%emt 0:00:06]} e5 {[%emt 0:00:03]} 8. e4 {[%emt 0:00:08]} exd4 {[%emt 0:02:36]} 9. Nxd4 {[%emt 0:00:06]} Re8 {[%emt 0:00:08]} 10. h3 {[%emt 0:01:21]} Nc5 {[%emt 0:00:14]} 11. Re1 {[%emt 0:00:09]} Bd7 {[%emt 0:00:18]} 12. Bf4 {[%emt 0:03:51]} h6 {[%emt 0:00:45]} 13. Qc2 {[%emt 0:03:50]} Nfxe4 {[%emt 0:06:54]} 14. Nxe4 {[%emt 0:00:30]} Bxd4 {[%emt 0:00:19]} 15. Rad1 {[%emt 0:02:52]} Nxe4 {[%emt 0:15:15]} 16. Rxd4 {[%emt 0:02:12]} Ng5 {[%emt 0:03:21]} 17. Rxe8+ {[%emt 0:03:07]} Qxe8 {[%emt 0:02:46]} 18. Bxg5 {[%emt 0:02:24]} hxg5 {[%emt 0:00:30]} 19. Bxb7 {[%emt 0:00:30]} Qe1+ {[%emt 0:19:55]} 20. Kh2 {[%emt 0:15:14]} Re8 {[%emt 0:00:26]} 21. Re4 {[%emt 0:00:06]} Rxe4 {[%emt 0:02:16]} 22. Bxe4 {[%emt 0:00:30]} Be6 {[%emt 0:10:59]} 23. b3 {[%emt 0:03:39]} Kf8 {[%emt 0:04:04]} 24. Kg2 {[%emt 0:04:58]} Qa1 {[%emt 0:08:05]} 25. Bf3 {[%emt 0:03:45]} Qh8 {[%emt 0:00:56]} 26. g4 {[%emt 0:00:09]} Qe5 {[%emt 0:00:43]} 27. Qe4 Qxe4 {[%emt 0:00:08]} 28. Bxe4 {[%emt 0:00:36]} Ke7 {[%emt 0:00:27]} 29. Kg3 {[%emt 0:02:29]} Kf6 {[%emt 0:00:12]} 30. Kf3 {[%emt 0:00:06]} Ke5 {[%emt 0:02:51]} 31. Ke3 {[%emt 0:01:50]} c5 {[%emt 0:02:00]} 32. Bc6 a5 1/2-1/2

[Event "IND-ch Senior Open 2019"]
[Site "Mazitar"]
[Date "2019.12.18"]
[Round "10.5"]
[White "Mohammad Nubairshah Shaikh"]
[Black "Visakh N R"]
[Result "0-1"]
[ECO "A28"]
[WhiteElo "2421"]
[BlackElo "2516"]
[Annotator "ChessBase"]
[PlyCount "104"]
[EventDate "2018.12.08"]
[EventType "swiss"]
[EventCountry "IND"]
[SourceTitle "playchess.com"]
[Source "ChessBase"]
[SourceQuality "1"]
[TimeControl "40/5400+30:1800+30"]

1. c4 {[%emt 0:03:06]} e5 {[%emt 0:00:00]} 2. Nc3 {[%emt 0:00:04]} Nf6 {[%emt 0:00:37]} 3. Nf3 {[%emt 0:00:03]} Nc6 {[%emt 0:00:36]} 4. e3 {[%emt 0:00:02]} Bb4 {[%emt 0:05:27]} 5. Qc2 {[%emt 0:00:04]} Bxc3 {[%emt 0:03:04]} 6. bxc3 {[%emt 0:00:30]} e4 {[%emt 0:01:42]} 7. Nd4 {[%emt 0:01:56]} Ne5 {[%emt 0:01:45]} 8. f4 {[%emt 0:08:52]} exf3 {[%emt 0:01:51]} 9. Nxf3 {[%emt 0:00:06]} Nxf3+ {[%emt 0:01:27]} 10. gxf3 {[%emt 0:00:03]} O-O {[%emt 0:00:30]} 11. Rg1 {[%emt 0:00:30]} d5 {[%emt 0:13:30]} 12. Ba3 {[%emt 0:37:27]} Re8 {[%emt 0:00:26]} 13. O-O-O {[%emt 0:00:13]} c6 {[%emt 0:11:53]} 14. cxd5 {[%emt 0:04:02]} cxd5 {[%emt 0:02:35]} 15. Bc5 {[%emt 0:00:18]} Re6 {[%emt 0:05:01]} 16. Bd3 {[%emt 0:14:19]} Qa5 {[%emt 0:14:58]} 17. Bb4 {[%emt 0:22:11]} Qc7 {[%emt 0:02:21]} 18. Rg5 {[%emt 0:01:36]} Re5 {[%emt 0:05:36]} 19. Rg3 {[%emt 0:01:47]} g6 {[%emt 0:00:50]} 20. Rdg1 {[%emt 0:01:30]} Nh5 {[%emt 0:00:05]} 21. Rg5 {[%emt 0:00:06]} Ng7 {[%emt 0:04:52]} 22. f4 {[%emt 0:01:05]} Rxg5 {[%emt 0:00:08]} 23. Rxg5 {[%emt 0:00:01]} Be6 {[%emt 0:00:02]} 24. f5 {[%emt 0:00:57]} Qe5 {[%emt 0:00:01]} 25. h4 {[%emt 0:01:06]} Bxf5 {[%emt 0:00:26]} 26. Bxf5 {[%emt 0:00:30]} Nxf5 {[%emt 0:00:02]} 27. Qa4 {[%emt 0:00:27]} Qe4 {[%emt 0:01:55]} 28. Qd7 {[%emt 0:00:26]} b6 {[%emt 0:04:10]} 29. Qb7 {[%emt 0:00:30]} Re8 {[%emt 0:00:30]} 30. Qxa7 {[%emt 0:00:30]} h6 {[%emt 0:00:30]} 31. Rg1 {[%emt 0:00:36]} Nxe3 {[%emt 0:06:15]} 32. Qa4 {[%emt 0:00:01]} b5 {[%emt 0:01:14]} 33. Qb3 {[%emt 0:00:30]} Ng2 {[%emt 0:00:15]} 34. Bc5 {[%emt 0:00:35]} Nf4 {[%emt 0:00:20]} 35. Kd1 {[%emt 0:00:57]} Nh3 {[%emt 0:00:30]} 36. Qxb5 {[%emt 0:00:30]} Nxg1 {[%emt 0:00:30]} 37. Bxg1 {[%emt 0:00:01]} Ra8 {[%emt 0:01:45]} 38. Bd4 {[%emt 0:00:22]} Qh1+ {[%emt 0:01:08]} 39. Kc2 {[%emt 0:00:30]} Qe4+ {[%emt 0:00:30]} 40. Kd1 {[%emt 0:00:30]} h5 {[%emt 0:00:30]} 41. a4 {[%emt 0:02:04]} Qe8 {[%emt 0:04:02]} 42. Qxd5 {[%emt 0:16:38]} Qxa4+ {[%emt 0:00:30]} 43. Ke2 {[%emt 0:00:02]} Re8+ {[%emt 0:00:02]} 44. Kd3 {[%emt 0:00:09]} Qd1 {[%emt 0:01:14]} 45. c4 {[%emt 0:02:32]} Qb3+ {[%emt 0:07:07]} 46. Bc3 {[%emt 0:00:30]} Qb1+ {[%emt 0:00:30]} 47. Kd4 {[%emt 0:00:00]} Qe1 {[%emt 0:00:51]} 48. Kc5 {[%emt 0:01:24]} Qe7+ {[%emt 0:00:34]} 49. Kb5 {[%emt 0:01:30]} Rb8+ {[%emt 0:00:30]} 50. Ka4 {[%emt 0:00:30]} Qa7+ {[%emt 0:00:30]} 51. Ba5 {[%emt 0:00:30]} Qg1 {[%emt 0:00:30]} 52. Bc3 {[%emt 0:00:30]} Qb1 {[%emt 0:00:30]} 0-1